bitfinex/quotes_BTCUSD_20251104
["timestamp","ask_amount","ask_price","bid_price","bid_amount"]
[1762271023599,0.24552522,104100.0,104090.0,0.01451185]
[1762271023803,0.78571606,104100.0,104090.0,0.01451185]
[1762271025740,0.79553542,104100.0,104090.0,0.01451185]
[1762271026846,0.78571606,104100.0,104090.0,0.01451185]
[1762271028295,0.78571606,104100.0,104050.0,4e-05]
[1762271028296,0.1921968,104060.0,104050.0,4e-05]
[1762271028535,1.08349763,104060.0,104050.0,0.00052383]
[1762271028707,0.54441679,104060.0,104050.0,0.00052383]
[1762271029108,1.08460763,104060.0,104050.0,0.00052383]
[1762271029395,0.60987679,104060.0,104050.0,0.00052383]
[1762271029796,1.15806763,104060.0,104050.0,0.00152383]
[1762271030184,1.19424991,104060.0,104050.0,0.00152383]
[1762271030612,0.19225223,104030.0,104020.0,4e-05]
[1762271030784,0.19225223,104030.0,104020.0,0.00018444]
[1762271030785,0.53336223,104030.0,104020.0,0.00018444]
[1762271031000,0.63904828,104030.0,104020.0,0.00018444]
[1762271031202,0.63793828,104030.0,104020.0,0.00018444]
[1762271031405,0.63904828,104030.0,104020.0,0.00018444]
[1762271031757,1.17923912,104030.0,104020.0,0.00018444]
[1762271032050,0.63904828,104030.0,104020.0,0.00018444]
[1762271032949,0.65304828,104030.0,104020.0,0.00018444]
[1762271033402,1.2883388,104030.0,104020.0,0.00018444]
[1762271033783,1.32452108,104030.0,104020.0,0.00018444]
[1762271033988,0.46868605,104030.0,104020.0,0.00018444]
[1762271034186,0.37521999,104030.0,104020.0,0.00018444]
[1762271034634,0.36121999,104030.0,104020.0,0.19413993]
[1762271034805,0.35221999,104030.0,104020.0,0.19413993]
[1762271035008,0.36021999,104030.0,104020.0,0.19413993]
[1762271035359,0.00911,104030.0,104020.0,0.19413993]
[1762271035561,0.008,104030.0,104020.0,0.20983993]
[1762271035768,0.008,104030.0,104020.0,0.23291993]
[1762271035945,0.008,104030.0,104020.0,0.57291993]
[1762271036143,0.008,104030.0,104020.0,0.64902848]
[1762271036546,0.008,104030.0,104020.0,0.67302848]
[1762271036777,0.008,104030.0,104020.0,0.64902848]
[1762271037421,0.01910999,104030.0,104020.0,0.57261993]
[1762271037625,1e-08,104030.0,104020.0,0.61139993]
[1762271037826,0.03154867,104090.0,104080.0,0.19215987]
[1762271038024,0.00999999,104090.0,104080.0,0.19215987]
[1762271038244,0.01221999,104090.0,104070.0,0.25723725]
[1762271038402,0.01221999,104090.0,104080.0,0.19215987]
[1762271038600,0.2043614,104090.0,104070.0,0.25723725]
[1762271038948,0.03750492,104090.0,104080.0,0.19215987]
[1762271039074,0.03798726,104090.0,104080.0,0.19215987]
[1762271039277,0.23623867,104090.0,104080.0,0.002]
[1762271039467,0.24723867,104090.0,104080.0,0.002]
[1762271039688,0.67333835,104090.0,104080.0,0.002]
[1762271040852,0.67333835,104090.0,104080.0,0.19415987]
[1762271041046,0.09769201,104090.0,104080.0,0.19215987]
[1762271041204,0.00159234,104090.0,104080.0,0.19215987]
[1762271041413,0.20873374,104090.0,104070.0,0.20370771]
[1762271041793,0.00111,104080.0,104070.0,0.19217834]
[1762271042012,0.19326987,104080.0,104070.0,0.19217834]
[1762271042228,0.00111,104080.0,104070.0,0.20370834]
[1762271042396,0.09658201,104090.0,104080.0,0.19215987]
[1762271042608,0.01848234,104090.0,104080.0,0.19215987]
[1762271042807,0.01748233,104090.0,104080.0,0.19215987]
[1762271043051,0.00748234,104090.0,104080.0,0.20785987]
[1762271043271,0.01748233,104090.0,104080.0,0.20785987]
[1762271043464,0.00748234,104090.0,104080.0,0.20785987]
[1762271043708,0.00748234,104090.0,104080.0,0.19215987]
[1762271044086,0.00159234,104090.0,104080.0,0.19215987]
[1762271044301,0.19373375,104090.0,104070.0,0.24754834]
[1762271044448,0.24355237,104090.0,104080.0,0.19215987]
[1762271044663,0.05141096,104090.0,104080.0,0.19215987]
[1762271044876,0.00038601,104090.0,104080.0,0.23093987]
[1762271045257,0.01838601,104090.0,104080.0,0.23093987]
[1762271045457,0.01838601,104090.0,104080.0,0.57093987]
[1762271047295,0.00038601,104090.0,104080.0,0.57093987]
[1762271047497,0.00038601,104090.0,104080.0,0.54785987]
[1762271047701,0.00838601,104090.0,104080.0,0.54785987]
[1762271047898,0.20052742,104090.0,104080.0,0.04384]
[1762271048153,0.25213538,104090.0,104080.0,0.04384]
[1762271048355,0.25213538,104090.0,104080.0,0.23599987]
[1762271048604,0.05999397,104090.0,104080.0,0.23599987]
[1762271048742,0.20963741,104090.0,104080.0,0.23599987]
[1762271048937,0.20663741,104090.0,104080.0,0.23599987]
[1762271049210,0.00338601,104090.0,104080.0,0.27477987]
[1762271049339,0.01338601,104090.0,104080.0,0.27477987]
[1762271049965,0.01338601,104090.0,104080.0,0.23599987]
[1762271050164,0.01338601,104090.0,104080.0,0.25169987]
[1762271050366,0.01338601,104090.0,104080.0,0.27477987]
[1762271050797,0.01338601,104090.0,104080.0,0.33123866]
[1762271051954,0.01338601,104090.0,104080.0,0.27477987]
[1762271052156,0.20552742,104090.0,104080.0,0.23595987]
[1762271052287,0.01338601,104090.0,104080.0,0.23595987]
[1762271052689,0.20552742,104090.0,104080.0,0.19215987]
[1762271053042,0.01338601,104090.0,104080.0,0.23595987]
[1762271053283,0.01338601,104090.0,104080.0,0.27473987]
[1762271053885,0.01338601,104090.0,104080.0,0.61473987]
[1762271056434,0.01338601,104090.0,104080.0,0.85092215]
[1762271057389,0.01038601,104090.0,104080.0,0.85092215]
[1762271057746,0.00038601,104090.0,104080.0,0.85092215]
[1762271057942,0.00238601,104090.0,104080.0,1.14549821]
[1762271058147,0.00738601,104090.0,104080.0,1.14549821]
[1762271061332,0.00738601,104090.0,104080.0,1.29289821]
[1762271062290,0.00738601,104090.0,104080.0,1.09289821]
[1762271062714,1e-08,104090.0,104080.0,1.09289821]
[1762271062920,0.00232822,104100.0,104090.0,0.76832369]
[1762271063248,0.00247279,104100.0,104090.0,0.91512975]
[1762271064242,0.01047279,104100.0,104090.0,0.91612975]
[1762271064625,0.01347279,104100.0,104090.0,0.91712975]
[1762271066059,0.01347279,104100.0,104090.0,0.68094747]
[1762271066460,0.00247279,104100.0,104090.0,0.72262747]
[1762271066670,0.00447279,104100.0,104090.0,0.72662747]
[1762271066865,0.00847279,104100.0,104090.0,0.72762747]
[1762271067068,0.00447279,104100.0,104090.0,0.72662747]
[1762271067269,0.00447279,104100.0,104090.0,0.82634747]
[1762271067270,0.00247279,104100.0,104090.0,0.82634747]
[1762271067469,0.00647279,104100.0,104090.0,0.87502747]
[1762271067717,0.00447279,104100.0,104090.0,0.87402747]
[1762271068121,0.00747279,104100.0,104090.0,0.87102747]
[1762271068558,0.00947279,104100.0,104090.0,0.87302747]
[1762271069270,0.00947279,104100.0,104090.0,0.39853141]
[1762271069571,0.00947279,104100.0,104090.0,0.43845141]
[1762271075996,0.00935582,104100.0,104090.0,0.81463369]
[1762271076339,0.00935582,104100.0,104090.0,0.84346458]
[1762271076541,0.00714457,104100.0,104090.0,0.93804064]
[1762271080829,0.00714457,104100.0,104090.0,0.90185836]
[1762271081404,0.00714457,104100.0,104090.0,0.85817836]
[1762271081585,0.00714457,104100.0,104090.0,0.90173836]
[1762271084408,0.00714457,104100.0,104090.0,0.87290747]
[1762271085692,0.00714457,104100.0,104090.0,0.75477141]
[1762271085893,0.00714457,104100.0,104090.0,0.77754141]
[1762271087308,0.00935582,104100.0,104090.0,0.77754141]
[1762271089391,0.00703,104140.0,104130.0,0.1920676]
[1762271089739,0.00717495,104140.0,104130.0,0.2514376]
[1762271089954,0.01516645,104140.0,104130.0,0.2514376]
[1762271090162,0.02516644,104140.0,104130.0,0.2514376]
[1762271090542,0.01813644,104140.0,104130.0,0.2665476]
[1762271090757,0.01913644,104140.0,104130.0,0.2963176]
[1762271091112,0.00813645,104140.0,104130.0,0.33934928]
[1762271091324,0.01813644,104140.0,104130.0,0.2893176]
[1762271091538,0.01813644,104140.0,104130.0,0.2665476]
[1762271091843,0.02113644,104140.0,104130.0,0.2755476]
[1762271092419,0.01813644,104140.0,104130.0,0.2675476]
[1762271092749,0.03513644,104140.0,104130.0,0.2695476]
[1762271093083,0.03513644,104140.0,104130.0,0.2923176]
[1762271093544,0.04216644,104140.0,104130.0,0.2544376]
[1762271093791,0.04216644,104140.0,104130.0,0.2425076]
[1762271097535,0.03217997,104140.0,104130.0,0.2923176]
[1762271097939,0.02784912,104140.0,104130.0,0.2923176]
[1762271098081,0.02760048,104140.0,104130.0,0.2923176]
[1762271098285,0.02760048,104140.0,104130.0,0.34291215]
[1762271098488,0.01760049,104140.0,104130.0,0.3446452]
[1762271101149,0.02820048,104140.0,104130.0,0.20080065]
[1762271101296,0.03120048,104140.0,104130.0,0.24420065]
[1762271101500,0.02620048,104140.0,104130.0,0.2394276]
[1762271101707,0.21824964,104140.0,104130.0,0.2394276]
[1762271101916,0.22124964,104140.0,104130.0,0.006]
[1762271102120,0.22124964,104140.0,104130.0,0.002]
[1762271102567,0.1920676,104130.0,104120.0,0.19208528]
[1762271102770,0.2354576,104130.0,104120.0,0.19608528]
[1762271102974,0.27920828,104130.0,104120.0,0.19608528]
[1762271103189,0.08750085,104130.0,104120.0,0.19608528]
[1762271103810,0.03302017,104130.0,104120.0,0.19708528]
[1762271104378,0.03302017,104130.0,104120.0,0.005]
[1762271104379,0.24081777,104130.0,104120.0,0.005]
[1762271104578,0.24081777,104130.0,104120.0,0.19708605]
[1762271104945,0.24081777,104130.0,104120.0,0.005]
[1762271105286,0.24081777,104130.0,104120.0,0.19708605]
[1762271105501,0.28510449,104130.0,104120.0,0.19708605]
[1762271105877,0.29210449,104130.0,104120.0,0.007]
[1762271106080,0.10003689,104130.0,104120.0,0.19908605]
[1762271106285,0.29210449,104130.0,104120.0,0.19908605]
[1762271106492,0.29210449,104130.0,104120.0,0.007]
[1762271106666,1.11935163,104130.0,104120.0,0.003]
[1762271106929,1.53889391,104130.0,104120.0,0.003]
[1762271107129,0.20210449,104110.0,104100.0,0.004]
[1762271107286,0.20210449,104110.0,104080.0,0.20176768]
[1762271107287,0.19214141,104090.0,104080.0,0.20176768]
[1762271107470,0.19214141,104090.0,104080.0,0.004]
[1762271107471,0.2374014,104090.0,104080.0,0.004]
[1762271107672,0.20215986,104080.0,104070.0,0.004]
[1762271107874,0.04145999,104080.0,104070.0,0.19617834]
[1762271108074,0.060514,104080.0,104070.0,0.19617834]
[1762271108326,0.0757155,104080.0,104070.0,0.19617834]
[1762271108477,0.0757155,104080.0,104070.0,0.19666068]
[1762271108917,0.26787537,104080.0,104070.0,0.19666068]
[1762271109158,0.0757155,104080.0,104070.0,0.19666068]
[1762271109357,0.0827155,104080.0,104070.0,0.19766068]
[1762271110992,0.0887155,104080.0,104070.0,0.19866068]
[1762271111156,0.28087537,104080.0,104070.0,0.19866068]
[1762271111545,0.28087537,104080.0,104070.0,0.00648234]
[1762271111772,0.28087537,104080.0,104070.0,0.02648234]
[1762271111977,0.28087537,104080.0,104070.0,0.21866068]
[1762271112241,0.28087537,104080.0,104070.0,0.00248234]
[1762271112445,0.28087537,104080.0,104070.0,0.02648234]
[1762271112654,0.28087537,104080.0,104070.0,0.00248234]
[1762271112864,0.82144338,104080.0,104070.0,0.00248234]
[1762271113065,1.24098566,104080.0,104070.0,0.00248234]
[1762271113477,0.20222952,104050.0,104030.0,0.24522439]
[1762271113681,0.05338999,104040.0,104030.0,0.00414495]
[1762271113814,0.24562374,104040.0,104030.0,0.19639718]
[1762271114190,0.24562374,104040.0,104030.0,0.00414495]
[1762271114616,0.05338999,104040.0,104030.0,0.19639718]
[1762271114832,0.33172342,104040.0,104030.0,0.19639718]
[1762271115036,0.38201014,104040.0,104030.0,0.00514495]
[1762271115677,0.04365999,104040.0,104030.0,0.21238365]
[1762271115879,0.006,104040.0,104030.0,0.27962718]
[1762271116079,0.013,104040.0,104030.0,0.27962718]
[1762271116702,0.013,104040.0,104030.0,0.36572686]
[1762271116901,0.013,104040.0,104030.0,0.25709718]
[1762271117105,0.05402999,104040.0,104030.0,0.19739718]
[1762271117312,0.28009426,104040.0,104030.0,0.00514495]
[1762271117917,0.28009426,104040.0,104030.0,0.00114495]
[1762271118573,0.08786051,104040.0,104030.0,0.19739718]
[1762271118773,0.01599999,104040.0,104030.0,0.23614718]
[1762271118985,0.20219679,104060.0,104050.0,0.19220278]
[1762271119194,0.02529999,104060.0,104050.0,0.19620278]
[1762271120952,0.02829999,104060.0,104050.0,0.20750278]
[1762271121155,0.003,104060.0,104050.0,0.24625278]
[1762271121431,0.006,104060.0,104050.0,0.28981278]
[1762271122256,0.00999999,104070.0,104060.0,0.2161968]
[1762271122454,0.00999999,104070.0,104060.0,0.2549468]
[1762271122725,0.00999999,104080.0,104060.0,0.03875]
[1762271122940,0.05556296,104080.0,104070.0,0.024]
[1762271123361,0.00999999,104080.0,104070.0,0.024]
[1762271123580,0.00999999,104080.0,104070.0,0.004]
[1762271123725,0.04102999,104080.0,104050.0,0.40447076]
[1762271123924,0.02529999,104070.0,104060.0,0.004]
[1762271124328,0.02578275,104070.0,104060.0,0.004]
[1762271124531,0.03243943,104070.0,104060.0,0.004]
[1762271124709,0.03943943,104070.0,104060.0,0.004]
[1762271125070,0.05516943,104070.0,104060.0,0.004]
[1762271126529,0.06116943,104070.0,104060.0,0.005]
[1762271126702,0.05451275,104070.0,104060.0,0.005]
[1762271127112,0.03878275,104070.0,104060.0,0.005]
[1762271127926,0.02348275,104070.0,104060.0,0.005]
[1762271128130,0.02348275,104070.0,104060.0,0.02122]
[1762271128341,0.03878275,104070.0,104060.0,0.005]
[1762271129863,0.05996403,104070.0,104060.0,0.005]
[1762271130078,0.70568573,104070.0,104060.0,0.001]
[1762271130290,1.02663172,104070.0,104060.0,0.001]
[1762271130495,1.062814,104070.0,104060.0,0.001]
[1762271130938,1.055814,104070.0,104060.0,0.001]
[1762271131170,0.34,104060.0,104040.0,0.004]
[1762271131377,0.02169,104050.0,104040.0,0.004]
[1762271131582,0.12351968,104050.0,104040.0,0.004]
[1762271131802,0.67408768,104050.0,104040.0,0.004]
[1762271132021,0.00999999,104030.0,104020.0,0.00669033]
[1762271132257,0.04741999,104030.0,104020.0,0.00669033]
[1762271132488,0.03168999,104030.0,104020.0,0.00669033]
[1762271133102,0.05406739,104030.0,104020.0,0.00283528]
[1762271133306,0.03168999,104030.0,104020.0,0.00683528]
[1762271133541,0.04741999,104030.0,104020.0,0.00683528]
[1762271133776,0.13351967,104030.0,104020.0,0.00283528]
[1762271133972,0.2135824,104030.0,104020.0,0.00483528]
[1762271134176,0.19452839,104030.0,104020.0,0.00483528]
[1762271134377,0.13651967,104030.0,104020.0,0.00483528]
[1762271134834,0.05041999,104030.0,104020.0,0.00483528]
[1762271135053,0.05041999,104030.0,104020.0,0.00883528]
[1762271137002,0.67708768,104030.0,104020.0,0.00483528]
[1762271137503,0.13651967,104030.0,104020.0,0.00483528]
[1762271137643,0.20422844,104030.0,104020.0,0.00483528]
[1762271137843,1.08479645,104030.0,104020.0,0.00483528]
[1762271138479,0.34999999,104020.0,104010.0,0.0024]
[1762271138683,0.38145999,104020.0,104010.0,0.00254457]
[1762271138885,0.965468,104020.0,104010.0,0.00254457]
[1762271139111,1.05779529,104020.0,104010.0,0.00254457]
[1762271139484,1.11438309,104020.0,104010.0,0.00254457]
[1762271139884,0.47228195,104000.0,103990.0,0.0002]
[1762271140087,0.53145195,104000.0,103990.0,0.00034477]
[1762271140289,1.10666588,104000.0,103990.0,0.00034477]
[1762271140885,0.56609787,104000.0,103990.0,0.00034477]
[1762271141093,1.10666588,104000.0,103990.0,0.00034477]
[1762271141291,1.14284816,104000.0,103990.0,0.00034477]
[1762271141941,1.14484816,104000.0,103990.0,0.00734477]
[1762271142393,1.68841617,104000.0,103990.0,0.00734477]
[1762271142602,1.13784817,104000.0,103990.0,0.00734477]
[1762271142833,1.14784816,104000.0,103990.0,0.00734477]
[1762271143058,1.11166588,104000.0,103990.0,0.00734477]
[1762271143783,1.34015585,104000.0,103990.0,0.00734477]
[1762271144239,0.75340557,104000.0,103990.0,0.00734477]
[1762271144464,1.30397357,104000.0,103990.0,0.00734477]
[1762271144680,1.35781487,104000.0,103990.0,0.00806727]
[1762271145143,1.34015585,104000.0,103990.0,0.00806727]
[1762271145348,1.87879638,104000.0,103990.0,0.00806727]
[1762271145759,0.81531903,104000.0,103990.0,0.00806727]
[1762271145914,1.89645505,104000.0,103990.0,0.00806727]
[1762271146318,1.87879638,104000.0,103990.0,0.00806727]
[1762271146510,1.89643599,104000.0,103990.0,0.00806727]
[1762271146711,1.89443599,104000.0,103990.0,0.00106727]
[1762271146906,1.89643599,104000.0,103990.0,0.00406727]
[1762271147113,1.87879638,104000.0,103990.0,0.00406727]
[1762271147325,1.33322837,104000.0,103990.0,0.00106727]
[1762271147533,1.33622837,104000.0,103990.0,0.00106727]
[1762271147730,1.87879638,104000.0,103990.0,0.00306727]
[1762271147949,1.33822837,104000.0,103990.0,0.00306727]
[1762271148174,1.33522837,104000.0,103990.0,0.00306727]
[1762271148380,1.33822837,104000.0,103990.0,0.00306727]
[1762271148610,1.87879638,104000.0,103990.0,0.00306727]
[1762271148827,0.20238167,103960.0,103950.0,0.00408]
[1762271149014,0.26354782,103960.0,103950.0,0.00422512]
[1762271149222,0.26354782,103960.0,103950.0,0.19662531]
[1762271149223,0.08689614,103960.0,103950.0,0.19662531]
[1762271149434,0.27927782,103960.0,103950.0,0.19874732]
[1762271149853,0.01595999,103960.0,103950.0,0.21080732]
[1762271150081,0.01595999,103960.0,103950.0,0.22740732]
[1762271150285,0.01403703,103970.0,103950.0,0.25569732]
[1762271150510,0.01403703,103970.0,103960.0,0.19638168]
[1762271150776,0.09891531,103970.0,103960.0,0.19638168]
[1762271151020,0.02976703,103970.0,103960.0,0.19638168]
[1762271151223,0.22213021,103970.0,103960.0,0.19638168]
[1762271151401,0.23786021,103970.0,103960.0,0.19638168]
[1762271151625,0.04749703,103970.0,103960.0,0.19638168]
[1762271151827,0.8670795,103970.0,103960.0,0.004]
[1762271152040,0.11841831,103970.0,103960.0,0.19638168]
[1762271152242,0.11649553,103970.0,103960.0,0.19638168]
[1762271152666,0.01411425,103970.0,103960.0,0.21298168]
[1762271153355,0.00623147,103970.0,103960.0,0.23565168]
[1762271153555,0.00623147,103970.0,103960.0,0.21298168]
[1762271153985,0.00823147,103970.0,103960.0,0.21298168]
[1762271154200,0.004,103970.0,103960.0,0.27980097]
[1762271154407,0.004,103970.0,103960.0,0.57565168]
[1762271154620,0.004,103970.0,103960.0,0.23565168]
[1762271154853,0.00823147,103970.0,103960.0,0.25642168]
[1762271155067,0.00823147,103970.0,103960.0,0.23982168]
[1762271155286,0.21040192,103970.0,103960.0,0.04744]
[1762271155493,0.26085966,103970.0,103960.0,0.04744]
[1762271155904,0.21440192,103970.0,103960.0,0.00472281]
[1762271156130,0.23013192,103970.0,103960.0,0.00472281]
[1762271156361,0.77069993,103970.0,103960.0,0.00472281]
[1762271156570,0.77569993,103970.0,103960.0,0.00472281]
[1762271156773,1.11569993,103970.0,103960.0,0.00072281]
[1762271156975,1.20527599,103970.0,103960.0,0.00072281]
[1762271157404,1.20035317,103970.0,103960.0,0.00072281]
[1762271157624,1.19935317,103970.0,103960.0,0.00072281]
[1762271157828,1.20135317,103970.0,103960.0,0.00272281]
[1762271158029,0.56782318,103970.0,103960.0,0.02972281]
[1762271158245,0.5662091,103970.0,103960.0,0.22010449]
[1762271158460,0.5662091,103970.0,103960.0,0.00372281]
[1762271158682,1.10877711,103970.0,103960.0,0.01172281]
[1762271159124,0.5682091,103970.0,103960.0,0.01172281]
[1762271159336,1.19586377,103970.0,103960.0,0.01172281]
[1762271159539,1.19586377,103970.0,103960.0,0.03572281]
[1762271159751,1.19586377,103970.0,103960.0,0.01172281]
[1762271159997,0.65529576,103970.0,103960.0,0.01172281]
[1762271160239,1.19586377,103970.0,103960.0,0.01172281]
[1762271160921,0.37742647,103960.0,103950.0,0.00138329]
[1762271161164,0.37742647,103960.0,103950.0,0.19378348]
[1762271161165,1.03130824,103960.0,103950.0,0.19378348]
[1762271161409,0.19884479,103960.0,103950.0,0.21778348]
[1762271161631,0.19884479,103960.0,103950.0,0.19778348]
[1762271161632,0.18504479,103960.0,103950.0,0.19778348]
[1762271162134,0.20084479,103960.0,103950.0,0.20078348]
[1762271162355,0.18704479,103960.0,103950.0,0.20078348]
[1762271162602,0.44934734,103960.0,103950.0,0.01138329]
[1762271162812,0.44934734,103960.0,103950.0,0.20378348]
[1762271163010,0.24316566,103960.0,103950.0,0.20378348]
[1762271163221,0.20384479,103960.0,103950.0,0.20378348]
[1762271163642,0.19004479,103960.0,103950.0,0.22038348]
[1762271163872,0.2115676,103960.0,103950.0,0.20378348]
[1762271164117,0.2253676,103960.0,103950.0,0.01138329]
[1762271164328,0.1052856,103960.0,103950.0,0.20378348]
[1762271164548,0.1052856,103960.0,103950.0,0.20378388]
[1762271164763,0.00538592,103960.0,103950.0,0.24305388]
[1762271165026,0.00538592,103960.0,103950.0,0.00738371]
[1762271165225,0.31146728,103960.0,103950.0,0.01138371]
[1762271165465,0.30954435,103960.0,103950.0,0.01138371]
[1762271165686,0.40112041,103960.0,103950.0,0.00838371]
[1762271165899,1.28168842,103960.0,103950.0,0.00438371]
[1762271166117,1.3328707,103960.0,103950.0,0.00438371]
[1762271166357,1.369063,103960.0,103950.0,0.00438371]
[1762271166565,1.3687717,103960.0,103950.0,0.0046247]
[1762271166775,0.19240019,103950.0,103940.0,8e-05]
[1762271166979,0.1924187,103940.0,103930.0,0.05]
[1762271167140,0.84320639,103940.0,103930.0,0.05048419]
[1762271167341,0.89016456,103940.0,103930.0,0.05048419]
[1762271167771,0.93360456,103940.0,103930.0,0.05048419]
[1762271168319,0.93660456,103940.0,103930.0,0.05148419]
[1762271168523,1.03118062,103940.0,103930.0,0.05148419]
[1762271168642,1.02925158,103940.0,103930.0,0.05148419]
[1762271169062,0.19245573,103920.0,103910.0,0.0502]
[1762271169314,1.08508374,103920.0,103910.0,0.05034514]
[1762271169512,0.59506667,103920.0,103910.0,0.05034514]
[1762271169710,1.13563468,103920.0,103910.0,0.05034514]
[1762271170051,0.54451573,103920.0,103910.0,0.05034514]
[1762271170257,0.55657573,103920.0,103910.0,0.05434514]
[1762271170444,0.01206,103920.0,103910.0,0.25887939]
[1762271170647,0.20967519,103930.0,103920.0,0.19645573]
[1762271170776,0.01723629,103930.0,103920.0,0.19645573]
[1762271170973,0.2862635,103930.0,103920.0,0.004]
[1762271171678,0.2862635,103930.0,103910.0,0.25481939]
[1762271171890,0.2751335,103930.0,103920.0,0.004]
[1762271172109,0.20358573,103920.0,103910.0,0.24681795]
[1762271172293,0.28968541,103920.0,103910.0,0.05434514]
[1762271172444,0.39539147,103920.0,103910.0,0.05434514]
[1762271172860,1.46933296,103920.0,103910.0,0.05034514]
[1762271173275,1.46933296,103920.0,103910.0,0.05634514]
[1762271173276,1.47133296,103920.0,103910.0,0.05634514]
[1762271173895,1.47133296,103920.0,103910.0,0.06034514]
[1762271173896,0.43922968,103920.0,103910.0,0.06034514]
[1762271174103,0.64281541,103920.0,103910.0,0.06034514]
[1762271174306,0.29268541,103920.0,103910.0,0.25581939]
[1762271174512,0.30381541,103920.0,103910.0,0.25581939]
[1762271174714,0.30381541,103920.0,103910.0,0.06334514]
[1762271174846,0.39839147,103920.0,103910.0,0.06334514]
[1762271175257,1.47233296,103920.0,103910.0,0.05934514]
[1762271175651,0.77264993,103920.0,103910.0,0.05934514]
[1762271175876,1.54466583,103920.0,103910.0,0.05934514]
[1762271176046,0.81072434,103920.0,103910.0,0.05934514]
[1762271176448,1.54466583,103920.0,103910.0,0.05934514]
[1762271177146,0.73646765,103920.0,103910.0,0.05934514]
[1762271177364,1.47040914,103920.0,103910.0,0.05934514]
[1762271177774,1.46848532,103920.0,103910.0,0.05934514]
[1762271177985,1.5046676,103920.0,103910.0,0.06030954]
[1762271178198,1.5427248,103920.0,103910.0,0.06030954]
[1762271178415,1.52235127,103920.0,103910.0,0.06030954]
[1762271178839,1.5046676,103920.0,103910.0,0.08430954]
[1762271179083,0.63996777,103920.0,103910.0,0.25278379]
[1762271179318,1.41009154,103920.0,103910.0,0.06430954]
[1762271179533,0.19247425,103910.0,103900.0,0.00012]
[1762271179748,1.27907191,103910.0,103900.0,0.00026504]
[1762271180836,1.28607191,103910.0,103900.0,0.00126504]
[1762271181048,1.46186366,103910.0,103900.0,0.00199504]
[1762271181251,0.19252984,103880.0,103870.0,0.05]
[1762271181475,0.28591952,103880.0,103870.0,0.05]
[1762271181685,0.29128496,103880.0,103870.0,0.05]
[1762271181905,0.35674496,103880.0,103870.0,0.26654837]
[1762271182116,0.16613968,103880.0,103870.0,0.26654837]
[1762271182331,0.00729,103880.0,103870.0,0.26154837]
[1762271182534,0.09338968,103880.0,103870.0,0.24154837]
[1762271182745,0.00729,103880.0,103870.0,0.24154837]
[1762271183190,0.10067968,103880.0,103870.0,0.049]
[1762271183410,0.40783959,103880.0,103870.0,0.05]
[1762271183632,0.38878558,103880.0,103870.0,0.23854837]
[1762271183857,0.38878558,103880.0,103870.0,0.046]
[1762271184105,0.39178558,103880.0,103870.0,0.046]
[1762271184323,0.39178558,103880.0,103840.0,0.0002]
[1762271184324,0.19983837,103870.0,103840.0,0.0002]
[1762271184543,0.21163741,103860.0,103820.0,0.06756]
[1762271184750,0.01905401,103860.0,103830.0,0.00963112]
[1762271184962,0.0577044,103870.0,103850.0,0.19658254]
[1762271185174,0.0577044,103870.0,103860.0,0.19256691]
[1762271185423,0.18167574,103880.0,103860.0,0.19656261]
[1762271185626,0.18167574,103880.0,103860.0,0.19256261]
[1762271185627,0.37228102,103880.0,103860.0,0.19256261]
[1762271185835,0.09517512,103880.0,103870.0,0.19251332]
[1762271186043,0.20252984,103880.0,103870.0,0.20634332]
[1762271186249,0.20252984,103880.0,103870.0,0.01279495]
[1762271186460,0.01,103880.0,103870.0,0.23253489]
[1762271186687,0.01307551,103880.0,103870.0,0.24980332]
[1762271186895,0.00807551,103880.0,103870.0,0.30264988]
[1762271187527,0.001,103880.0,103870.0,0.35684655]
[1762271187781,0.202163,103920.0,103890.0,0.19651131]
[1762271188033,0.2021056,103950.0,103930.0,0.19243721]
[1762271188260,0.2021056,103950.0,103930.0,0.04468]
[1762271188261,0.03994516,103950.0,103930.0,0.04468]
[1762271188493,0.1924187,103940.0,103930.0,0.04468]
[1762271188716,0.1924187,103940.0,103930.0,0.004]
[1762271188941,0.1924187,103940.0,103930.0,0.04868]
[1762271189184,0.24196625,103950.0,103940.0,0.004]
[1762271189185,0.32806593,103950.0,103940.0,0.004]
[1762271189392,0.32806593,103950.0,103940.0,0.04872]
[1762271189596,0.33006593,103950.0,103940.0,0.04872]
[1762271189801,1.06400742,103950.0,103940.0,0.004]
[1762271189974,0.32806593,103950.0,103940.0,0.004]
[1762271190208,1.06200742,103950.0,103940.0,0.004]
[1762271190412,0.20206548,103940.0,103920.0,0.19245573]
[1762271190618,0.29664154,103940.0,103930.0,0.04876]
[1762271190832,0.28699476,103940.0,103930.0,0.24119721]
[1762271191056,0.28899476,103940.0,103930.0,0.05076]
[1762271191677,0.28888012,103940.0,103930.0,0.05076]
[1762271192736,1.02482161,103940.0,103930.0,0.002]
[1762271193142,0.29088012,103940.0,103930.0,0.002]
[1762271193357,0.004,103940.0,103930.0,0.19843721]
[1762271193753,0.1964187,103940.0,103930.0,0.006]
[1762271193957,0.1964187,103940.0,103930.0,0.19843721]
[1762271194083,0.004,103940.0,103930.0,0.19843721]
[1762271194285,0.1964187,103940.0,103930.0,0.19843721]
[1762271194491,0.24886716,103940.0,103930.0,0.006]
[1762271195759,0.24886716,103940.0,103930.0,0.19843721]
[1762271196257,0.24886716,103940.0,103930.0,0.002]
[1762271196460,0.98280865,103940.0,103930.0,0.05072]
[1762271197930,0.24886716,103940.0,103930.0,0.05072]
[1762271198319,0.24886716,103940.0,103930.0,0.05068]
[1762271198727,0.98280865,103940.0,103930.0,0.006]
[1762271198930,0.98280865,103940.0,103930.0,0.05068]
[1762271199156,0.98280865,103940.0,103930.0,0.006]
[1762271199377,0.24886716,103940.0,103930.0,0.24311721]
[1762271199606,0.24886716,103940.0,103930.0,0.05068]
[1762271200112,0.24886716,103940.0,103930.0,0.24311721]
[1762271200353,0.1964187,103940.0,103930.0,0.24311721]
[1762271200628,0.004,103940.0,103930.0,0.24311721]
[1762271200904,0.1964187,103940.0,103930.0,0.25542721]
[1762271201139,0.004,103940.0,103930.0,0.25542721]
[1762271202157,0.1964187,103940.0,103930.0,0.25542721]
[1762271202396,0.1964187,103940.0,103930.0,0.24311721]
[1762271202618,0.24886716,103940.0,103930.0,0.0506]
[1762271202845,0.98280865,103940.0,103930.0,0.24303721]
[1762271203076,0.004,103940.0,103930.0,0.27184721]
[1762271203308,0.004,103940.0,103930.0,0.29631721]
[1762271203993,0.002,103940.0,103930.0,0.38041689]
[1762271204498,0.0004827,103950.0,103940.0,0.1964187]
[1762271204743,0.0004827,103950.0,103940.0,0.33196476]
[1762271205866,0.0134827,103950.0,103940.0,0.34155534]
[1762271206569,0.0134827,103950.0,103940.0,0.24697928]
[1762271206807,0.0134827,103950.0,103940.0,0.29111928]
[1762271207540,2.7e-06,103950.0,103940.0,0.66730156]